bitfinex-derivatives/quotes_SOLF0:USTF0_20230103
["timestamp","ask_amount","ask_price","bid_price","bid_amount"]
[1672754135532,16.7,11.979,11.969,5.0]
[1672754136161,16.76177693,11.979,11.97,0.06657981]
[1672754140048,66.64,12.0,11.977,50.0]
[1672754140261,16.67,11.988,11.978,5.0]
[1672754140678,50.0,11.995,11.971,5.0]
[1672754140884,15.11,11.994,11.971,5.0]
[1672754141203,0.07049693,11.987,11.978,0.06827996]
[1672754141414,16.6,11.98,11.978,0.06246081]
[1672754141626,16.6,11.98,11.975,0.06285862]
[1672754141837,16.6,11.98,11.973,0.06353401]
[1672754145306,16.72,11.978,11.973,0.06353401]
[1672754147510,0.06741938,11.982,11.973,0.06353401]
[1672754147511,16.72,11.975,11.973,0.06353401]
[1672754147721,16.72,11.975,11.967,50.0]
[1672754147722,16.72,11.975,11.97,0.06322314]
[1672754148036,16.72,11.975,11.968,5.06427565]
[1672754149396,16.49,11.975,11.968,5.06427565]
[1672754151183,16.49,11.975,11.968,0.06427565]
[1672754153922,0.0698938,11.977,11.975,0.07395217]
[1672754154132,0.06083869,11.98,11.975,0.07395217]
[1672754156758,16.5,11.978,11.975,0.07395217]
[1672754158967,16.37498001,11.978,11.975,0.07395217]
[1672754162643,16.37498001,11.978,11.975,5.217e-05]
[1672754163596,0.06083869,11.98,11.975,5.217e-05]
[1672754166011,16.57,11.978,11.975,5.217e-05]
[1672754166533,16.63,11.976,11.975,5.217e-05]
[1672754166959,0.18968599,11.975,11.972,0.06883778]
[1672754167169,0.18968599,11.975,11.969,0.06718047]
[1672754167484,0.18968599,11.975,11.969,5.06718047]
[1672754179461,0.06397149,11.976,11.975,0.02315815]
[1672754179668,0.06820826,11.98,11.975,0.02315815]
[1672754179883,16.6,11.981,11.975,0.02315815]
[1672754191234,16.57,11.979,11.975,0.02315815]
[1672754191758,16.63,11.981,11.975,0.02315815]
[1672754193438,16.51430298,11.981,11.975,0.02315815]
[1672754199841,0.00455685,11.982,11.976,50.0]
[1672754200054,16.55,11.998,11.981,50.0]
[1672754200373,16.55,11.998,11.986,50.0]
[1672754200575,16.55,11.998,11.987,5.0]
[1672754201102,0.06465601,11.997,11.988,0.06993879]
[1672754201523,0.06465601,11.997,11.989,5.0]
[1672754205518,0.06465601,11.997,11.989,21.63]
[1672754208249,16.63,12.005,11.996,50.0]
[1672754208674,16.63,12.005,11.993,5.0]
[1672754208882,16.63,12.005,11.996,50.0]
[1672754209092,16.63,12.005,11.997,5.0]
[1672754209301,16.69690419,12.005,11.997,5.0]
[1672754210769,16.57,12.002,11.993,5.0]
[1672754210984,16.55,12.0,11.992,544.99145624]
[1672754211193,16.55,12.0,11.991,575.0]
[1672754211504,16.55,12.0,11.992,5.0]
[1672754212033,16.61860934,12.0,11.992,5.07040373]
[1672754213393,16.61860934,12.0,11.992,0.07040373]
[1672754217389,16.63,11.997,11.992,0.07040373]
[1672754217710,16.63,11.997,11.991,346.62854652]
[1672754217915,16.63,11.997,11.985,575.0]
[1672754218125,66.52,12.002,11.977,47.6839]
[1672754218126,16.5,11.994,11.981,16.59]
[1672754218332,16.5,11.994,11.982,4.85787213]
[1672754218546,16.47,11.99,11.984,0.06413707]
[1672754218753,16.47,11.99,11.983,0.06504285]
[1672754220231,16.63,11.988,11.983,0.06504285]
[1672754221073,16.63,11.99,11.983,0.06504285]
[1672754225798,0.06153196,11.991,11.983,0.06504285]
[1672754226009,0.06153196,11.991,11.983,16.54504285]
[1672754226225,0.06153196,11.991,11.985,50.0]
[1672754226543,16.57,11.997,11.986,21.59]
[1672754226752,16.57,11.997,11.987,5.0]
[1672754227490,16.57,11.997,11.988,0.06075621]
[1672754227491,0.06730063,11.996,11.988,0.06075621]
[1672754228220,0.06730063,11.996,11.988,16.54075621]
[1672754228430,0.06730063,11.996,11.989,5.0]
[1672754231163,16.6,12.001,11.989,5.0]
[1672754232110,0.06405495,11.999,11.991,0.06961027]
[1672754235049,0.06405495,11.999,11.991,16.67961027]
[1672754235261,0.06405495,11.999,11.992,5.0]
[1672754243459,16.55,12.004,11.999,0.15410562]
[1672754246406,0.06801901,12.006,11.999,0.15410562]
[1672754254708,16.68,12.01,12.0,5.0]
[1672754255546,0.06466035,12.009,12.001,0.06261978]
[1672754258703,16.7,12.006,12.001,0.06261978]
[1672754258909,16.7,12.003,11.999,0.15410562]
[1672754261227,0.06101282,12.005,11.999,0.15410562]
[1672754267424,0.06101282,12.005,11.999,0.02715749]
[1672754267425,16.76101282,12.005,11.999,0.02715749]
[1672754268680,0.06101282,12.005,11.999,0.02715749]
[1672754268893,16.69,12.002,11.999,0.02715749]
[1672754269418,0.06101282,12.005,11.999,0.02715749]
[1672754269623,0.06101282,12.005,11.993,575.0]
[1672754269836,16.58,11.995,11.993,520.57125955]
[1672754270154,16.58,11.995,11.985,575.0]
[1672754270365,16.58,11.995,11.986,5.0]
[1672754270786,16.64246987,11.995,11.986,5.06958211]
[1672754273937,16.69,11.993,11.986,0.06958211]
[1672754274986,0.06246987,11.995,11.986,0.06958211]
[1672754275202,0.06246987,11.995,11.986,5.06958211]
[1672754281505,16.72,11.992,11.982,877.0]
[1672754281819,16.69,11.989,11.979,45.9652]
[1672754282029,16.69,11.989,11.98,5.0]
[1672754282552,16.75926852,11.989,11.98,5.0640251]
[1672754292856,16.75926852,11.989,11.98,0.0640251]
[1672754294749,16.61648178,11.989,11.98,0.0640251]
[1672754295695,16.58,11.986,11.98,0.0640251]
[1672754296112,16.72,11.983,11.98,0.0640251]
[1672754296327,16.69,11.982,11.977,0.06295836]
[1672754296537,16.69,11.982,11.975,5.06805864]
[1672754296852,0.07066535,11.984,11.975,5.06805864]
[1672754299584,0.07066535,11.984,11.975,0.06805864]
[1672754303794,16.52,11.982,11.975,0.06805864]
[1672754307480,16.2885516,11.982,11.975,0.06805864]
[1672754314835,0.07066535,11.984,11.975,0.06805864]
[1672754315248,0.07066535,11.984,11.975,5.06805864]
[1672754319247,16.63066535,11.984,11.975,0.06805864]
[1672754320402,16.49514515,11.984,11.975,5.06805864]
[1672754321352,16.5577337,11.984,11.975,5.06805864]
[1672754323034,16.5577337,11.984,11.975,55.06805864]
[1672754323350,0.06258855,11.984,11.975,55.06805864]
[1672754324819,0.06258855,11.984,11.975,5.06805864]
[1672754325451,16.44,11.983,11.975,5.06805864]
[1672754325971,0.06258855,11.984,11.975,5.06805864]
[1672754326813,0.06258855,11.984,11.975,55.06805864]
[1672754328911,0.06258855,11.984,11.975,5.06805864]
[1672754331127,0.06258855,11.984,11.975,55.06805864]
[1672754331760,0.06258855,11.984,11.975,5.06805864]
[1672754332702,0.06258855,11.984,11.975,55.06805864]
[1672754333440,16.6,11.988,11.984,0.10234149]
[1672754335332,0.06645173,11.99,11.984,0.10234149]
[1672754337431,16.6,11.988,11.984,4.149e-05]
[1672754338160,16.58,11.985,11.984,4.149e-05]
[1672754342162,0.06645173,11.99,11.984,4.149e-05]
[1672754342163,16.6,11.987,11.984,4.149e-05]
[1672754342587,16.6,11.989,11.984,4.149e-05]
[1672754343744,16.44,11.985,11.984,4.149e-05]
[1672754351836,16.35826825,11.985,11.984,4.149e-05]
[1672754358982,16.61,11.985,11.984,4.149e-05]
[1672754360660,16.61,11.988,11.984,4.149e-05]
[1672754366553,16.53138999,11.988,11.984,4.149e-05]
[1672754367916,16.5,11.986,11.984,4.149e-05]
[1672754371386,16.61,11.988,11.984,4.149e-05]
[1672754376007,16.61,11.985,11.984,4.149e-05]
[1672754379159,16.45097888,11.985,11.984,4.149e-05]
[1672754379896,0.18545604,11.984,11.979,0.06931548]
[1672754380107,16.61,11.983,11.977,0.06244787]
[1672754380315,16.61,11.983,11.976,0.06587158]
[1672754390933,66.53,11.978,11.976,7.158e-05]
[1672754391135,16.53,11.978,11.964,5.0]
[1672754391349,16.55,11.973,11.964,5.0]
[1672754391879,16.62037172,11.973,11.964,5.07080103]
[1672754392399,0.07037172,11.973,11.964,21.60080103]
[1672754392613,0.07037172,11.973,11.968,5.0]
[1672754394187,0.07037172,11.973,11.968,54.2206]
[1672754396394,0.07037172,11.973,11.968,5.0]
[1672754396600,0.07037172,11.973,11.964,16.68080103]
[1672754396815,0.07037172,11.973,11.965,50.0]
[1672754397028,0.07037172,11.973,11.966,5.0]
[1672754397660,0.07037172,11.973,11.965,50.0]
[1672754398601,0.07037172,11.973,11.966,5.0]
[1672754399025,16.72037172,11.973,11.966,5.0]
[1672754399231,16.72037172,11.973,11.964,5.07080103]
[1672754399442,16.72037172,11.973,11.964,55.07080103]
[1672754402596,0.07037172,11.973,11.967,16.51]
[1672754402913,0.07037172,11.973,11.968,5.0]
[1672754403648,16.55,11.98,11.973,0.06269759]
[1672754403965,16.65,11.982,11.973,0.06269759]
[1672754404490,16.71702326,11.982,11.973,0.12942682]
[1672754405329,0.06702326,11.982,11.975,5.0]
[1672754409111,0.06702326,11.982,11.975,21.54]
[1672754410476,0.18545604,11.984,11.977,16.65]
[1672754410686,16.65,11.989,11.978,5.0]
[1672754411525,0.06602044,11.988,11.978,5.0]
[1672754411737,0.06602044,11.988,11.98,16.51]
[1672754412050,0.06602044,11.988,11.981,5.0]
[1672754414886,0.06602044,11.988,11.984,50.0]
[1672754415092,0.06602044,11.988,11.985,5.0]
[1672754415304,0.06390496,11.991,11.985,5.0]
[1672754415515,0.06664462,11.992,11.985,5.0]
[1672754415725,0.06151446,11.993,11.985,5.0]
[1672754416773,0.06151446,11.993,11.985,21.48]
[1672754417617,0.06151446,11.993,11.987,16.65]
[1672754417832,0.06151446,11.993,11.988,5.0]
[1672754418251,1.446e-05,11.993,11.988,5.0]
[1672754418671,16.61,11.999,11.988,5.0]
[1672754419092,16.64,12.002,11.99,16.61]
[1672754419404,16.64,12.002,11.991,5.0]
[1672754419618,0.06148207,12.001,11.992,0.06011139]
[1672754422359,0.06148207,12.001,11.992,16.71011139]
[1672754422675,0.06148207,12.001,11.994,50.0]
[1672754422885,0.06148207,12.001,11.995,5.0]
[1672754425512,0.06148207,12.001,11.993,49.22]
[1672754425723,16.66148207,12.001,11.993,49.22]
[1672754426877,16.66148207,12.001,11.994,5.0]
[1672754430139,16.66148207,12.001,11.993,54.22]
[1672754430449,16.66148207,12.001,11.993,49.22]
[1672754432131,0.06148207,12.001,11.994,55.0]
[1672754433086,16.65,12.003,12.001,0.09975558]
[1672754446113,16.65,12.008,12.002,5.0]
[1672754450947,0.06158449,12.009,12.004,50.0]
[1672754451156,0.06158449,12.009,12.005,5.0]
[1672754455041,0.06158449,12.009,12.002,5.0]
[1672754455252,16.65,12.006,12.001,0.16432695]
[1672754459772,16.45558411,12.006,12.001,0.16432695]
[1672754461456,16.45558411,12.006,12.001,2.695e-05]
[1672754461658,16.65,12.002,11.989,50.7856]
[1672754461873,16.65,11.998,11.99,5.0]
[1672754462498,16.65,11.998,11.99,5.07078205]
[1672754462714,16.71713582,11.998,11.99,5.07078205]
[1672754467129,0.06713582,11.998,11.99,5.07078205]
[1672754469970,16.71713582,11.998,11.99,5.07078205]
[1672754471859,16.71713582,11.998,11.99,0.07078205]
[1672754472487,16.6,11.995,11.99,0.07078205]
[1672754472802,16.65,11.992,11.982,45.2443]
[1672754473012,16.65,11.992,11.984,50.0]
[1672754473223,16.65,11.992,11.985,5.0]
[1672754476375,16.65,11.992,11.984,50.06532206]
[1672754477113,16.65,11.992,11.984,0.06532206]
[1672754477531,16.65,11.992,11.984,50.06532206]
[1672754478583,16.65,11.992,11.985,5.0]
[1672754479001,0.06661314,11.993,11.985,5.0]
[1672754486979,16.55,11.99,11.984,0.06532206]
[1672754487504,16.3887693,11.99,11.984,0.06532206]
[1672754488873,16.65,11.986,11.984,0.06532206]
[1672754489091,16.65,11.986,11.981,0.06886916]
[1672754489297,16.65,11.986,11.979,5.06647454]
[1672754491085,16.65,11.986,11.979,0.06647454]
[1672754491607,0.05925373,11.979,11.975,5.0]
[1672754491818,0.05925373,11.979,11.975,1803.0]
[1672754495288,16.61,11.986,11.976,5.0]
[1672754495500,16.61,11.994,11.983,50.0]
[1672754495704,16.61,11.994,11.984,5.0]
[1672754496336,16.61,11.994,11.985,0.06492369]
[1672754496547,0.07084425,11.993,11.985,0.06492369]
[1672754509366,16.67,11.996,11.993,0.08077153]
[1672754513680,16.80075955,11.999,11.993,0.08077153]
[1672754516201,16.74,11.997,11.993,0.08077153]
[1672754518514,16.74,11.998,11.993,0.08077153]
[1672754520713,0.06075955,11.999,11.993,0.08077153]
[1672754520714,16.63,11.997,11.993,0.08077153]
[1672754520928,16.63,11.997,11.993,7.153e-05]
[1672754521245,16.67,11.994,11.983,47.5984]
[1672754521452,16.67,11.994,11.983,97.5984]
[1672754522083,16.67,11.994,11.984,5.0]
[1672754522293,0.06042468,11.993,11.984,5.06449734]
[1672754530178,0.06042468,11.993,11.984,0.06449734]
[1672754534173,0.06042468,11.993,11.984,5.06449734]
[1672754535749,16.67,11.994,11.993,0.16747241]
[1672754536062,16.67,11.994,11.985,5.0]
[1672754536907,16.73588935,11.994,11.985,5.06981023]
[1672754537435,0.06588935,11.994,11.985,21.80981023]
[1672754541634,0.06588935,11.994,11.988,16.74]
[1672754541845,0.06588935,11.994,11.989,5.0]
[1672754542474,0.06588935,11.994,11.989,51.8782]
[1672754548141,16.74,12.001,11.99,5.0]
[1672754549090,16.74,12.001,11.991,0.06355486]
[1672754549303,0.07111821,12.0,11.991,0.06355486]
[1672754550458,16.74,11.998,11.991,0.06355486]
[1672754562437,16.57917481,11.998,11.991,0.06355486]
[1672754577250,16.40672483,11.998,11.991,0.06355486]
[1672754589126,0.07111821,12.0,11.993,50.0]
[1672754589439,0.07111821,12.0,11.994,4.90048829]
[1672754590279,16.74,12.003,11.994,4.90048829]
[1672754590280,16.74,12.008,11.995,16.64]
[1672754590491,16.74,12.008,11.996,5.0]
[1672754590914,16.74,12.009,11.997,16.73]
[1672754591224,16.74,12.009,11.998,5.0]
[1672754591437,0.06478419,12.007,11.999,0.06174118]
[1672754592907,16.74,12.006,11.999,0.06174118]
[1672754603626,16.58,12.004,11.999,0.06174118]
[1672754603939,16.72,12.001,11.999,4.118e-05]
[1672754604151,16.72,12.001,11.99,5.0]
[1672754604355,16.74,11.996,11.99,5.0]
[1672754605932,16.74,11.996,11.989,0.06948213]
[1672754618333,16.74,11.994,11.989,0.06948213]
[1672754618541,16.50682205,11.994,11.989,0.06948213]
[1672754619593,16.77071516,11.997,11.989,0.06948213]
[1672754628416,0.07071516,11.997,11.993,50.0]
[1672754628627,0.07071516,11.997,11.994,5.0]
[1672754628940,0.06036357,12.0,11.994,5.0]
[1672754629147,0.06374362,12.001,11.994,5.0]
[1672754629358,0.07030865,12.002,11.994,5.0]
[1672754631459,16.72,12.008,11.996,5.0]
[1672754632614,0.06221794,12.006,11.998,0.0644735]
[1672754639551,16.64,12.015,12.003,5.0]
[1672754639969,16.62,12.012,12.003,5.0]
[1672754640386,50.0,12.014,12.003,5.0]
[1672754640387,16.71,12.009,12.003,5.0]
[1672754640598,16.71,12.009,12.003,5.06777212]
[1672754641228,16.58,12.011,12.003,5.06777212]
[1672754643648,16.64,12.009,12.003,0.06777212]
[1672754645221,16.77923646,12.012,12.003,0.06777212]
[1672754645539,16.77923646,12.012,12.003,5.06777212]
[1672754646589,0.06923646,12.012,12.003,5.06777212]
[1672754646907,0.06923646,12.012,12.003,50.49517212]
[1672754649954,0.06923646,12.012,12.006,5.0]
[1672754653209,16.71,12.014,12.012,0.0069141]
[1672754657199,16.77812411,12.017,12.012,0.0069141]
[1672754659617,0.06812411,12.017,12.012,0.0069141]
[1672754666128,16.71,12.018,12.017,0.11367856]
[1672754666758,16.71,12.018,12.012,0.0069141]
[1672754675695,0.06069805,12.019,12.012,0.0069141]
[1672754676215,0.06069805,12.019,12.012,50.0069141]
[1672754676425,0.06069805,12.019,12.013,5.0]
[1672754677582,16.68,12.025,12.013,5.0]
[1672754678635,16.68,12.025,12.015,0.06520698]
[1672754679480,16.64,12.027,12.016,16.65]
[1672754679686,16.71,12.032,12.019,16.71]
[1672754679997,16.71,12.032,12.021,0.06749747]
[1672754680318,16.71,12.029,12.021,0.06749747]
[1672754683153,16.71,12.032,12.021,0.06749747]
[1672754683365,16.71,12.032,12.022,0.06486011]
[1672754683574,16.71,12.032,12.022,5.06486011]
[1672754683889,16.51,12.032,12.022,5.06486011]
[1672754684835,16.51,12.029,12.022,5.06486011]
[1672754685782,16.51,12.029,12.022,0.06486011]
[1672754687877,16.64,12.026,12.022,0.06486011]
[1672754688507,16.49,12.023,12.022,6.011e-05]
[1672754688718,16.49,12.023,12.008,16.64]
[1672754688926,16.64,12.02,12.008,16.64]
[1672754689564,16.70479999,12.02,12.012,0.0775105]
[1672754693136,16.64,12.016,12.012,0.0775105]
[1672754693348,16.49,12.019,12.012,0.0775105]
[1672754694823,0.06479999,12.02,12.012,0.0775105]
[1672754702278,16.64,12.021,12.02,0.01522846]
[1672754705748,16.64,12.024,12.02,0.01522846]
[1672754710897,16.64,12.026,12.02,0.01522846]
[1672754712893,16.51,12.029,12.02,0.01522846]
[1672754713103,16.64,12.031,12.02,0.07766751]
[1672754714576,16.45905259,12.031,12.02,0.07766751]
[1672754723718,16.64,12.027,12.02,0.07766751]
[1672754723934,16.64,12.027,12.02,0.01522846]
[1672754726984,16.47391023,12.027,12.02,0.01522846]
[1672754731921,16.64,12.028,12.02,0.01522846]
[1672754732241,16.64,12.028,12.02,0.07898561]
[1672754732980,16.51,12.031,12.02,0.07898561]
[1672754735284,16.51,12.031,12.02,5.07898561]
[1672754739491,16.51,12.031,12.02,0.07898561]
[1672754739706,16.49,12.026,12.02,0.07898561]
[1672754740232,16.64,12.028,12.02,0.07898561]
[1672754741388,16.47883795,12.028,12.02,0.07898561]
[1672754746540,16.64,12.024,12.016,575.0]
[1672754747064,16.64,12.024,12.011,16.6]
[1672754747595,0.06375715,12.023,12.015,5.06361277]
[1672754758737,0.06375715,12.023,12.015,4.91913584]
[1672754759784,0.06375715,12.023,12.015,4.98923372]
[1672754762094,0.06375715,12.023,12.017,5.0]
[1672754766513,0.06375715,12.023,12.016,52.8178]
[1672754767990,0.06375715,12.023,12.016,47.8178]
[1672754771769,16.65,12.025,12.023,0.02111623]
[1672754772818,575.0,12.117,12.023,0.02111623]
[1672754773033,16.7,12.074,12.032,50.0]
[1672754773243,50.0,12.054,12.032,50.0]
[1672754773448,45.1183,12.073,12.024,62.38]
[1672754773449,45.1183,12.073,12.033,47.1761]
[1672754773660,50.0,12.044,12.034,5.0]
[1672754773869,50.0,12.054,12.034,5.0]
[1672754774081,16.65,12.042,12.04,0.06213655]
[1672754774395,16.65,12.042,12.037,0.06598895]
[1672754774712,16.65,12.042,12.035,0.06632794]
[1672754775128,16.65,12.039,12.035,0.06632794]
[1672754775344,16.65,12.037,12.033,0.06654495]
[1672754775549,16.65,12.037,12.031,0.06309257]
[1672754775757,16.65,12.037,12.03,0.06104471]
[1672754775971,16.65,12.038,12.03,0.06104471]
[1672754778702,16.56,12.037,12.03,0.06104471]
[1672754778917,16.56,12.037,12.029,0.06590643]
[1672754781436,16.63,12.039,12.029,0.06590643]
[1672754781646,16.63,12.039,12.03,0.06059818]
[1672754782277,16.62,12.042,12.032,50.0]
[1672754782490,16.62,12.042,12.033,0.06330519]
[1672754782804,16.62,12.042,12.033,5.06330519]
[1672754783643,66.52,12.053,12.033,5.06330519]
[1672754783850,16.56,12.047,12.039,0.06602589]
[1672754784066,16.56,12.047,12.039,0.07076586]
[1672754787325,16.62,12.051,12.047,0.20479977]
[1672754787538,16.56,12.05,12.047,0.20479977]
[1672754787960,16.63,12.048,12.044,0.06909625]
[1672754788171,66.52,12.053,12.044,0.06909625]
[1672754788382,16.46,12.046,12.044,0.06909625]
[1672754788690,16.46,12.046,12.041,0.06391803]
[1672754788905,16.46,12.046,12.039,5.06350844]
[1672754790377,16.63,12.041,12.039,0.06350844]
[1672754790588,16.63,12.041,12.036,0.06774231]
[1672754790795,16.63,12.041,12.034,5.07069171]
[1672754791951,16.53,12.044,12.034,5.07069171]
[1672754792157,16.53,12.044,12.035,0.06271773]
[1672754794058,16.5,12.047,12.035,0.06271773]
[1672754794371,16.5,12.047,12.037,0.06426163]
[1672754795104,16.56,12.044,12.037,0.06426163]
[1672754795322,16.55,12.041,12.036,0.06260192]
[1672754795632,16.55,12.041,12.034,0.06982293]
[1672754800992,16.63,12.043,12.034,0.06982293]
[1672754801301,16.63,12.047,12.035,16.47]
[1672754801516,16.46330746,12.047,12.037,0.06687324]
[1672754805613,62.19,12.06,12.037,0.06687324]
[1672754805614,16.5,12.053,12.042,50.0]
[1672754805819,16.5,12.053,12.043,5.06634571]
[1672754806561,16.56,12.05,12.043,5.06634571]
[1672754806769,16.56,12.05,12.043,5.0]
[1672754807189,16.63,12.052,12.043,5.0]
[1672754807400,16.63,12.052,12.043,5.06075023]
[1672754816124,16.49799269,12.052,12.043,5.06075023]
[1672754818645,16.49799269,12.052,12.043,0.06075023]
[1672754818855,16.49799269,12.052,12.043,5.06075023]
[1672754820637,16.63,12.055,12.043,5.06075023]
[1672754820957,16.63,12.055,12.045,0.07047629]
[1672754827369,45.4194,12.059,12.045,0.07047629]
[1672754827370,16.46,12.05,12.045,0.07047629]
[1672754827572,16.46,12.05,12.043,0.06225616]
[1672754827787,16.46,12.05,12.042,50.0623554]
[1672754827993,16.46,12.05,12.043,5.0]
[1672754828204,16.27175551,12.05,12.043,5.0]
[1672754829256,16.27175551,12.05,12.042,0.0623554]
[1672754829670,16.27175551,12.05,12.042,50.0623554]
[1672754830100,16.27175551,12.05,12.043,5.0]
[1672754831044,16.27175551,12.05,12.042,0.0623554]
[1672754831260,16.27175551,12.05,12.042,50.0623554]
[1672754831569,16.27175551,12.05,12.043,5.0]
[1672754831784,16.53,12.048,12.043,5.0]
[1672754832520,16.53,12.048,12.041,50.0696245]
[1672754833251,16.53,12.048,12.041,0.0696245]
[1672754833571,16.53,12.043,12.03,16.63]
[1672754833886,16.63,12.038,12.032,5.0]
[1672754834310,5.0,12.051,12.032,5.0]
[1672754834509,16.46,12.039,12.032,5.0]
[1672754834723,5.0,12.052,12.032,5.0]
[1672754834937,16.55,12.041,12.032,5.0]
[1672754835151,16.59,12.043,12.032,5.0]
[1672754835461,0.06244888,12.041,12.032,5.0667731]
[1672754837667,0.06244888,12.041,12.033,16.49]
[1672754837876,0.06244888,12.041,12.034,5.0]
[1672754838718,0.06244888,12.041,12.034,52.6973]
[1672754839347,0.06244888,12.041,12.034,5.0]
[1672754839982,0.06244888,12.041,12.032,5.0667731]
[1672754841968,16.53,12.048,12.033,21.61]
[1672754842184,16.53,12.048,12.034,5.0]
[1672754843023,16.53,12.048,12.037,0.06309249]
[1672754843442,16.63,12.045,12.037,0.06309249]
[1672754843758,16.63,12.045,12.037,0.0697627]
[1672754843970,16.61,12.045,12.037,0.0697627]
[1672754844181,5.0,12.052,12.037,0.0697627]
[1672754844493,5.0,12.052,12.04,0.06970242]
[1672754844705,16.44,12.041,12.04,0.06970242]
[1672754844915,16.44,12.041,12.036,5.0645771]
[1672754846069,16.44,12.041,12.036,0.0645771]
[1672754847121,16.61,12.044,12.036,0.0645771]
[1672754847328,16.61,12.044,12.036,0.06548561]
[1672754855725,16.44681753,12.044,12.036,0.06548561]
[1672754859833,16.61,12.048,12.036,0.06548561]
[1672754860042,16.61,12.048,12.038,0.06948732]
[1672754864040,16.6,12.046,12.038,0.06948732]
[1672754864353,16.6,12.046,12.038,0.06938242]
[1672754867502,16.6,12.046,12.041,50.0]
[1672754867826,16.45,12.049,12.042,5.0]
[1672754868136,16.45,12.049,12.042,628.8872]
[1672754868348,16.58,12.053,12.042,628.8872]
[1672754868555,16.58,12.053,12.043,0.06269283]
[1672754868972,16.36449087,12.053,12.043,0.06269283]
[1672754871287,16.6,12.054,12.043,0.06269283]
[1672754871494,16.6,12.054,12.044,0.06106888]
[1672754874229,16.57,12.058,12.044,0.06106888]
[1672754874442,16.6,12.06,12.047,16.5409386]
[1672754874649,16.6,12.06,12.049,0.06455181]
[1672754874860,16.6,12.06,12.049,5.06455181]
[1672754878857,16.48,12.06,12.049,5.06455181]
[1672754881482,16.57,12.063,12.049,5.06455181]
[1672754881690,16.57,12.063,12.052,16.63007738]
[1672754881903,16.57,12.063,12.053,5.0]
[1672754882109,50.0,12.064,12.053,5.0]
[1672754882324,16.57,12.066,12.054,49.39056321]
[1672754882638,50.0,12.064,12.055,5.0]
[1672754883374,16.57,12.066,12.055,5.0]
[1672754883802,16.52,12.066,12.055,5.0]
[1672754884004,50.0,12.065,12.055,5.0]
[1672754884321,45.4409,12.072,12.056,0.06546038]
[1672754884531,50.0,12.065,12.06,0.06113636]
[1672754885158,50.0,12.075,12.06,0.06113636]
[1672754885475,50.0,12.065,12.063,0.068189]
[1672754885685,50.0,12.065,12.06,0.06285092]
[1672754885889,50.0,12.065,12.058,0.0638238]
[1672754886524,16.48,12.066,12.058,0.0638238]
[1672754886841,0.05885525,12.058,12.055,21.48]
[1672754888628,17.52,12.081,12.057,66.39]
[1672754888943,15.55,12.094,12.063,16.52]
[1672754889149,5.0,12.093,12.063,16.52]
[1672754889364,24.82,12.092,12.064,5.0]
[1672754889575,24.82,12.092,12.074,0.07017387]
[1672754889786,16.38,12.075,12.064,5.0]
[1672754890094,16.38,12.075,12.065,0.0688178]
[1672754890309,16.52,12.076,12.065,0.0688178]
[1672754890519,16.52,12.076,12.066,0.06809176]
[1672754891356,16.52,12.078,12.066,5.06809176]
[1672754891569,16.52,12.078,12.068,0.06613001]
[1672754893251,16.52,12.08,12.068,0.06613001]
[1672754893462,16.52,12.08,12.07,0.0681731]
[1672754893884,16.52,12.082,12.07,0.0681731]
[1672754894094,16.52,12.082,12.072,0.0685405]
[1672754895669,16.4,12.087,12.072,16.5885405]
[1672754895878,16.4,12.087,12.075,0.0700452]
[1672754896088,16.4,12.087,12.075,5.0700452]
[1672754896821,16.4,12.087,12.075,54.8586452]
[1672754897451,16.52,12.089,12.076,16.47]